Cogmind - Beta 17 @@@ ROGUE MODE // 2026.08.19 @ 14:49:29 Player: 4R-ZE3 Result: Destroyed by S-10 Pest with Light Assault Rifle Performance ------------- Evolutions (0) 0 Regions Visited (2) 400 Robots Destroyed (23) 115 Value Destroyed (470) 470 Prototype IDs (0) 0 Alien Tech Used (0) 0 Bonus (0) 0 TOTAL SCORE: 985 Bonus ------- None Cogmind --------- Core Integrity 0/250 Matter 290/300 Energy 250/250 System Corruption 0% Temperature Cool (0) Movement Rolling (80) Location -10/Mines Parts ------- > --- POWER (1) -------- Ion Engine > --- PROPULSION (2) --- Wheel Wheel > --- UTILITY (2) ------ Heat Sink Small Storage Unit > --- WEAPON (2) ------- Light Assault Rifle Light Assault Rifle > --- INVENTORY (8) ---- Ion Engine Heat Sink Huge Storage Unit Hacking Suite Particle Gun Assault Rifle Light Assault Rifle Light Assault Rifle Peak State ------------ > --- POWER ------------ Light Ion Engine > --- PROPULSION ------- Wheel Compact Wheel > --- UTILITY ---------- Heat Sink Small Storage Unit > --- WEAPON ----------- Light Assault Rifle Light Assault Rifle > --- INVENTORY -------- Ion Engine Huge Storage Unit Hacking Suite Assault Rifle Light Assault Rifle Light Assault Rifle Light Assault Rifle Light Assault Rifle [Rating: 8] Favorites ----------- Power Light Ion Engine Engine Light Ion Engine Propulsion Light Treads Treads Light Treads Wheel Wheel Utility Small Storage Unit Device Heat Sink Storage Small Storage Unit Weapon Light Assault Rifle Ballistic Gun Light Assault Rifle Build | -11 -10 -10 ------- Run | Yrd Mat Min Slots Evolved . | . . . Power . | . . . Propulsion . | . . . Utility . | . . . Weapon . | . . . Parts Attached 19 | 6 13 . Power 3 | 1 2 . Engine 3 | 1 2 . Core . | . . . Reactor . | . . . Propulsion 6 | 2 4 . Treads 2 | 2 . . Leg . | . . . Wheel 4 | . 4 . Hover . | . . . Flight . | . . . Utility 3 | 1 2 . Device 2 | . 2 . Storage 1 | 1 . . Processor . | . . . Hackware . | . . . Protection . | . . . Artifact . | . . . Weapon 7 | 2 5 . Energy Gun . | . . . Energy Cannon . | . . . Ballistic Gun 7 | 2 5 . Ballistic Cannon . | . . . Launcher . | . . . Special Weapon . | . . . Impact Weapon . | . . . Slashing Weapon . | . . . Piercing Weapon . | . . . Special Melee Weapon . | . . . Unidentified Prototypes . | . . . Parts Lost 9 | . 9 . Power 2 | . 2 . Propulsion 4 | . 4 . Utility . | . . . Weapon 3 | . 3 . Highest Loss Streak 4 | . 4 . To Critical Strikes . | . . . Average Backups 6 | 1 6 8 Power . | . . 1 Propulsion . | . . . Utility 2 | . 2 3 Weapon 3 | . 3 4 Tool/Special . | . . . Unused Backups 7 | . . 7 Power 1 | . . 1 Propulsion . | . . . Utility 2 | . . 2 Weapon 4 | . . 4 Tool/Special . | . . . Average Slot Usage (%) 86 | . 85 100 Engine 13 | . 13 14 Treads 10 | . 11 . Wheel 10 | . 9 28 Device 8 | . 7 14 Storage 14 | . 14 14 Ballistic Gun 28 | . 28 28 Peak Build Rating 8 | 6 8 8 Average Rating 6 | 4 6 8 On Entrance 4 | . 6 8 Avg Prop Armor Cover (%) . | . . . Naked Turns . | . . . Heaviest Build 13 | 10 13 13 Greatest Support 40 | 40 40 20 Greatest Overweight (x) 4 | . 4 . Average Overweight (x) . | . . . Largest Inventory Capacity 8 | 8 8 8 Average Capacity 7 | 6 8 8 Most Carried 8 | 4 8 8 Average Carried 6 | 1 6 8 Final Capacity 8 | 8 8 8 Final Carried 8 | 4 8 8 Class Distribution -------------------- 72% | Mutant 27% | Scavenger-Mutant Dominant Class ---------------- Mutant | -10/Materials Scavenger-Mutant | -10/Mines Resources | -11 -10 -10 ----------- Run | Yrd Mat Min Matter Collected 534 | 180 354 . Remotely . | . . . Salvage Created 663 | . 626 37 Parts 45 | . 41 4 Haulers Intercepted . | . . . Recyclers Shooed . | . . . Parts Field Recycled . | . . . Retrieved Matter . | . . . Parts Self-Destructed . | . . . Prevented . | . . . Parts Restored . | . . . Kills | -11 -10 -10 ------- Run | Yrd Mat Min Combat Hostiles Destroyed 18 | . 16 2 Guns 18 | . 16 2 Classes Destroyed 5 | . 5 . Worker 3 | . 3 . Builder 1 | . 1 . Operator 1 | . 1 . Swarmer 8 | . 6 2 Grunt 10 | . 10 . Best Kill Streak 4 | . 4 2 Combat Bots Only 4 | . 4 2 Max Kills in Single Turn 2 | . 2 1 Gunslinging . | . . . Exploded . | . . . Melee . | . . . Uniques/NPCs Destroyed . | . . . Combat | -11 -10 -10 -------- Run | Yrd Mat Min Hostile Shots Fired 141 | . 134 7 Missed 35 | . 34 1 Hits 106 | . 100 6 Projectile 106 | . 100 6 Critical Strikes 1 | . 1 . Damage Taken 1157 | . 1109 48 Core 253 | . 237 16 Absorbed by Shields . | . . . Core Remaining (%) 100 | 100 . . Volleys Fired 100 | . 95 5 Largest 2 | . 2 2 Hottest 40 | . 40 40 Shots Fired 199 | . 189 10 Gun 199 | . 189 10 Cannon . | . . . Launcher . | . . . Special . | . . . Kinetic 199 | . 189 10 Thermal . | . . . Explosive . | . . . Electromagnetic . | . . . Robot Hit Streak 18 | . 18 2 Robot Miss Streak 4 | . 4 2 Penetration Max . | . . . Secondary Targets 2 | . 1 1 Max Gunslinging Chain 1 | . 1 1 Shots Hit Robots 123 | . 117 6 Core Hits 51 | . 48 3 Critical Kills . | . . . Critical Parts Destroyed . | . . . Critical Strikes . | . . . Melee Attacks . | . . . Impact . | . . . Slashing . | . . . Piercing . | . . . Sneak Attacks . | . . . Combat Hostiles . | . . . Follow-up Attacks . | . . . Damage Inflicted 1006 | . 958 48 Guns 1006 | . 958 48 Cannons . | . . . Explosions . | . . . Melee . | . . . Ramming . | . . . Kinetic 1006 | . 958 48 Thermal . | . . . Explosive . | . . . Electromagnetic . | . . . Impact . | . . . Slashing . | . . . Piercing . | . . . Highest Corruption . | . . . Average Corruption . | . . . Corruption Purged . | . . . Corruption Blocked . | . . . Overload Shots . | . . . Overflow Damage . | . . . Projectiles . | . . . Explosions . | . . . Melee . | . . . Knockbacks . | . . . Impact . | . . . Kinetic . | . . . Secondary . | . . . Self-Inflicted Damage . | . . . Shots . | . . . Rammed . | . . . Targets Rammed . | . . . Kicked . | . . . Crushed . | . . . Highest Temperature 33 | . 33 . Average Temperature 11 | . 11 . Received Heat Transfer 531 | . 531 . Siege Activations . | . . . Martial Activations . | . . . Shielding Activations . | . . . Robots Disrupted . | . . . Combat Hostiles . | . . . Robots Corrupted . | . . . Combat Hostiles . | . . . Parts Fried . | . . . Impact Corruptions . | . . . Robots Melted . | . . . Combat Hostiles . | . . . Parts Melted . | . . . Heat Transferred . | . . . Parts Sabotaged . | . . . Parts Stolen . | . . . Parts Stripped . | . . . Power Chain Reactions . | . . . Alert | -11 -10 -10 ------- Run | Yrd Mat Min Maximum Alert Level . | . . . Low Security (%) 100 | 100 100 100 Level 1 . | . . . Level 2 . | . . . Level 3 . | . . . Level 4 . | . . . Level 5 . | . . . High Security . | . . . Max Security . | . . . Peak Influence 181 | . 181 63 Initial 43 | . . 43 Average 55 | . 61 35 Influence Increases 540 | . 500 40 Destroy 0b10 Robot/C 360 | . 320 40 Destroy 0b10 Robot/NC 25 | . 25 . Destroy Leader 80 | . 80 . Select Force Hacks 60 | . 60 . Lose Combat Pursuer 15 | . 15 . Influence Decreases 487 | . 387 100 Entered New Map 70 | . . 70 Time Decay 341 | . 311 30 Lost Part 76 | . 76 . Squads Dispatched 5 | . 5 . Investigation 2 | . 2 . Extermination . | . . . Reinforcement 3 | . 3 . Assault . | . . . Garrison . | . . . Intercept . | . . . Searches Triggered . | . . . Construction Impeded . | . . . Haulers Reinforced . | . . . Active Scanning Responses . | . . . Cargo Convoy Interrupts . | . . . Stealth | -11 -10 -10 --------- Run | Yrd Mat Min Distress Signals 3 | . 3 . Communications Jammed . | . . . Distress Signals . | . . . Times Spotted 36 | . 33 3 Peak Tracking Total 4 | . 4 3 Tactical Retreats 1 | . 1 . Traps | -11 -10 -10 ------- Run | Yrd Mat Min Traps Triggered . | . . . Indirectly . | . . . Trap Hack Attempts . | . . . Triggered . | . . . Disarmed . | . . . Reprogrammed . | . . . Reused . | . . . Traps Extracted . | . . . Installed . | . . . Triggered . | . . . Machines | -11 -10 -10 ---------- Run | Yrd Mat Min Machines Disabled . | . . . Max in Single Turn . | . . . Machines Repaired . | . . . Machines Dismantled . | . . . Machines Sabotaged . | . . . Overloaded Fab Kills . | . . . Hacking | -11 -10 -10 --------- Run | Yrd Mat Min Machines Accessed 4 | . 4 . Terminals 2 | . 2 . Fabricators . | . . . Repair Stations . | . . . Recycling Units 2 | . 2 . Scanalyzers . | . . . Garrison Access . | . . . Total Hacks 6 | . 6 . Successful 4 | . 4 . Failed 2 | . 2 . Catastrophic 1 | . 1 . Database Lockouts . | . . . Manual 6 | . 6 . Terminals 4 | . 4 . Fabricators . | . . . Repair Stations . | . . . Recycling Units 2 | . 2 . Scanalyzers . | . . . Garrison Access . | . . . Terminal Hacks 1 | . 1 . Robot Analysis 1 | . 1 . Fabricator Hacks . | . . . Repair Station Hacks . | . . . Recycling Unit Hacks . | . . . Scanalyzer . | . . . Garrison Access Hacks . | . . . Unauthorized Hacks 3 | . 3 . Terminals 1 | . 1 . Botnet 1 | . 1 . Fabricators . | . . . Repair Stations . | . . . Recycling Units 2 | . 2 . Tunnel 2 | . 2 . Scanalyzers . | . . . Garrison Access . | . . . Data Cores Recovered . | . . . Used . | . . . Hacking Detections 2 | . 2 . Full Trace Events . | . . . Feedback Events . | . . . Feedback Blocked . | . . . Robot Schematics Acquired . | . . . Robots Built . | . . . Authchips . | . . . Time . | . . . Total Robot Build Rating . | . . . Part Schematics Acquired . | . . . Parts Built . | . . . Authchips . | . . . Time . | . . . Total Part Build Rating . | . . . Part Studies Acquired . | . . . Parts Repaired . | . . . Time . | . . . Parts Recycled . | . . . Recycled Matter . | . . . Retrieved Matter . | . . . Retrieved Components . | . . . Parts Scanalyzed . | . . . Part Schematics Acquired . | . . . Parts Damaged . | . . . Bothacking | -11 -10 -10 ------------ Run | Yrd Mat Min Used RIF Installer . | . . . Robots Hacked . | . . . Non-combat . | . . . Combat . | . . . Robot Hacks Applied . | . . . Relay Couplers Released . | . . . Fabnet Peak Effective % . | . . . Robots Rewired . | . . . Allies Hacked . | . . . Hacks Repelled . | . . . Allies | -11 -10 -10 -------- Run | Yrd Mat Min Total Allies . | . . . Largest Group . | . . . Highest-Rated Group . | . . . Highest-Rated Ally . | . . . Total Orders . | . . . Ally Attacks . | . . . Total Damage . | . . . Kills . | . . . Allies Corrupted . | . . . Allies Melted . | . . . Intel | -11 -10 -10 ------- Run | Yrd Mat Min Active Infowar (turns) . | . . . Robot Analysis Total 1 | . 1 . Derelict Logs Recovered . | . . . Drone Launches . | . . . Drone Recoveries . | . . . Exploration | -11 -10 -10 ------------- Run | Yrd Mat Min Turns Passed 1005 | 74 871 60 Spaces Moved 504 | 41 404 59 Core 60 | 3 57 . Treads 188 | 38 150 . Legs . | . . . Wheels 256 | . 197 59 Hover . | . . . Flight . | . . . Fastest Speed 50 | 50 80 80 Average Speed 131 | 151 137 80 Slowest Speed 250 | 160 250 80 Overloaded Moves . | . . . Propulsion Burnouts . | . . . Robots Hopped . | . . . Potential Cave-ins . | . . . Cave-ins Triggered . | . . . Exploration Rate (%) 32 | 4 72 22 Regions Visited 2 Branch Regions 1 Pre-discovered Areas 2 | . 2 . Known Exits Taken . | . . . Unknown Exits Taken 2 | 1 1 . Scrap Searched 1 | . . 1 Spaces Dug . | . . . Terrain Destroyed . | . . . Melee . | . . . Projectile . | . . . AOE . | . . . Terrain Rammed . | . . . Walls Destroyed . | . . . Machines Disabled . | . . . Actions | -11 -10 -10 --------- Run | Yrd Mat Min Total 682 | 50 567 65 Wait 45 | . 44 1 Move 502 | 40 403 59 Hop . | . . . Pick Up 14 | 4 10 . Fast Attach 9 | 6 3 . Attach 7 | . 7 . Detach . | . . . Swap 3 | . 3 . Drop 2 | . 2 . Fire 100 | . 95 5 Melee . | . . . Ram . | . . . Kick . | . . . Crush . | . . . Escape Stasis . | . . . Rewire . | . . . Trap . | . . . Miscellaneous . | . . . Route ------- -11/Scrapyard -10/Materials (discovered 3 exits: [*Mat x2] / [*Min]) -10/Mines History --------- Turn | Location | Event 12 | -11/Scrapyard | Discovered new exit (range 15) 75 | -11/Scrapyard | Entered Materials 177 | -10/Materials | Discovered new exit (range 16) 304 | -10/Materials | Build established: Mutant 308 | -10/Materials | Discovered new exit (range 10) 456 | -10/Materials | Lost 4 parts (1p2n1w) 568 | -10/Materials | Core integrity fell below 50% 693 | -10/Materials | Core integrity fell below 20% 729 | -10/Materials | Lost 3 parts (2n1w) 731 | -10/Materials | Discovered new exit (range 8) 946 | -10/Materials | Entered Mines 971 | -10/Mines | Found a hidden stash of uninstalled traps 1006 | -10/Mines | Destroyed by S-10 Pest with Light Assault Rifle Last Messages --------------- 00873_ ALERT: Hostiles spotted, dispatching reinforcements to Terminal M007. 00886_ K-01 Serf destroyed. 00888_ K-01 Serf collects debris. 00892_ K-01 Serf destroyed. 00899_ Acquired 10 matter. 00904_ Acquired Wheel. 00907_ Acquired 16 matter. 00910_ Acquired Wheel. 00931_ Acquired 10 matter. LOCATION=UNKNOWN GOAL=ESCAPE Something is scanning the area. 00961_ Searching scrap... 00961_ Found Aluminum Leg. 00961_ Found 64 Matter. 00971_ A stash of uninstalled traps is collected here! 01000_ S-10 Pest destroyed. 01002_ Switching to secondary target: S-10 Pest. Map ----- +----------------------------------------------------+ | ??# #??????# #???????????????? | | ??# ##?????# #???????????????? | | ???# ##????# #??????????###### | | ????# ###??# #?????????## | | ????# ##?# #??######## | | ????# #?# #??# | | ????# ### #### | | ????# = ########## | | ????# % #?????????# | | ?????# ###########?????????? | | ?????## #???????????????????? | | ?????## && ##???????????????????? | | ???### & #####????????????????????? | | ??## &##????????????????????????? | | ??# ######?????????????????????? | | ??# #### ##????????????????????? | | ??# ## #?# #????????????????????? | | ??# ### #?# ##???????????????????? | | ??# ### ####????????????????? | | ??# ###### ##???????????????? | | ??# #### #???????????????? | | ??# ## #???????????????? | | ??# # #????????????????? | | ??# ### #####????????????????? | | ??# ##?## ##?????? #?????????? | | ??# ##??##@### ???????????? | | ??## ##???# s%= #?????????????????? | | ???####????# %= #?????????????????? | | ???????????## ######?????????????????? | | ????????????###??????????????????????? | | ?????????????????????????????????????? | | ?????????????????????????????????????? | | ?????????????????????????????????????? | | ?????????????????????????????????????? | | ?????????????????????????????????????? | | ?????????????????????????????????????? | | ?????????????????????????????????????? | | ?????????????????????????????????????? | | ?????????????????????????????????????? | | ?????????????????????????????????????? | | ?????????????????????????????????????? | | ?????????????????????????????????????? | | ?????????????????????????????????????? | | ?????????????????????????????????????? | | ?????????????????????????????????????? | | ?????????????????????????????????????? | | ?????????????????????????????????????? | | ?????????????????????????????????????? | | ?????????????????????????????????????? | | ?????????????????????????????????????? | +----------------------------------------------------+ Best States ------------- Heat Dissipation 35 Energy Generation 10 Energy Capacity 250 Matter Stores 300 Matter Capacity 300 Sight Range 16 Terrain Scan Density 10 Evasion (%) 44 Recoil Reduction 2 Item Schematics ----------------- None Robot Schematics ------------------ None Fabricated ------------ Nothing Repaired ---------- Nothing Studied --------- None Alien Tech Used ----------------- None Achievements -------------- None Challenges ------------ None Game ------ Seed CoolantLayeredTracker Manual? 0 Play Time 00:05:45 Cumulative 276.2 hours Start 2026.08.19 @ 14:44:05 End 2026.08.19 @ 14:49:29 Sessions 1 Manual Loads 0 Difficulty Rogue Special Mode None Game No. 265 Rogue 211 Adventurer 54 Explorer 0 Win Type - Total 11 Types 7/0/1/1/0/0/0/1/0/1 Lore% 77 Gallery% 66 Achievement% 60 Wizard Run 0 Options --------- Layout 1 ASCII 0 Keyboard 0 Movement Mouse Keybinds 1 Fullscreen 2 Font 32/Tamsyn Map View 50x35 Zoom Use 0% Tactical HUD 1 Map Filters NONE Filters NONE Steam 1 RUN: 711275b3-aa99-41c5-a40a-4cb7766d688c